Cogmind - Beta 15 *** ADVENTURER MODE // 2025.10.15 @ 04:49:14 // Winter2022/Polymind Player: time Result: Destroyed by S-43 Plague with Heavy Machine Gun Performance ------------- Evolutions (9) 4500 Regions Visited (24) 4800 Robots Destroyed (9) 45 Value Destroyed (332) 332 Prototype IDs (0) 0 Alien Tech Used (0) 0 Bonus (9373) 9373 TOTAL SCORE: 18920 Bonus ------- Polymind Skill 7240 Follower Combat Kills 33 Entered Garrisons 600 Entered DSFs 1500 Cogmind --------- Core Integrity 0/1600 Matter 50/125 Energy 23/25 System Corruption 1% Temperature Warm (103) Movement Core (50) Location -1/Access Parts ------- > --- POWER (1) -------- (None) > --- PROPULSION (2) --- (None) > --- UTILITY (1) ------ Medium Matter Pod > --- WEAPON (1) ------- (None) > --- INVENTORY (1) ---- (None) Peak State ------------ > --- POWER ------------ Light Antimatter Reactor > --- PROPULSION ------- Xenon Bombardment Thruster Xenon Bombardment Thruster Xenon Bombardment Thruster > --- UTILITY ---------- (None) > --- WEAPON ----------- Heavy Machine Gun > --- INVENTORY -------- (None) [Rating: 24] Favorites ----------- Power Light Antimatter Reactor Engine Light Angular Momentum Engine Power Core Light Nuclear Core Reactor Light Antimatter Reactor Propulsion Carbon-fiber Leg Leg Carbon-fiber Leg Wheel Wheel Flight Unit Flight Unit Utility Advanced Heat Sink Device Advanced Heat Sink Storage Medium Matter Pod Processor Terrain Scan Processor Weapon Heavy Laser Energy Gun Heavy Laser Ballistic Gun Heavy Machine Gun Special Weapon Welding Torch Build | -11 -10 -10 -9 -9 -8 -8 -8 -7 -7 -7 -6 -6 -5 -5 -5 -4 -4 -4 -4 -3 -3 -2 -2 -1 ------- Run | Yrd Mat Min Mat Min Mat Sto Gar Fac Low Low Fac DSF Fac Upp Upp Fac Gar Fac DSF Res Gar Res DSF Acc Slots Evolved . | . . . . . . . . . . . . . . . . . . . . . . . . . Power . | . . . . . . . . . . . . . . . . . . . . . . . . . Propulsion . | . . . . . . . . . . . . . . . . . . . . . . . . . Utility . | . . . . . . . . . . . . . . . . . . . . . . . . . Weapon . | . . . . . . . . . . . . . . . . . . . . . . . . . Parts Attached . | . . . . . . . . . . . . . . . . . . . . . . . . . Power . | . . . . . . . . . . . . . . . . . . . . . . . . . Engine . | . . . . . . . . . . . . . . . . . . . . . . . . . Core . | . . . . . . . . . . . . . . . . . . . . . . . . . Reactor . | . . . . . . . . . . . . . . . . . . . . . . . . . Propulsion . | . . . . . . . . . . . . . . . . . . . . . . . . . Treads . | . . . . . . . . . . . . . . . . . . . . . . . . . Leg . | . . . . . . . . . . . . . . . . . . . . . . . . . Wheel . | . . . . . . . . . . . . . . . . . . . . . . . . . Hover . | . . . . . . . . . . . . . . . . . . . . . . . . . Flight . | . . . . . . . . . . . . . . . . . . . . . . . . . Utility . | . . . . . . . . . . . . . . . . . . . . . . . . . Device . | . . . . . . . . . . . . . . . . . . . . . . . . . Storage . | . . . . . . . . . . . . . . . . . . . . . . . . . Processor . | . . . . . . . . . . . . . . . . . . . . . . . . . Hackware . | . . . . . . . . . . . . . . . . . . . . . . . . . Protection . | . . . . . . . . . . . . . . . . . . . . . . . . . Artifact . | . . . . . . . . . . . . . . . . . . . . . . . . . Weapon . | . . . . . . . . . . . . . . . . . . . . . . . . . Energy Gun . | . . . . . . . . . . . . . . . . . . . . . . . . . Energy Cannon . | . . . . . . . . . . . . . . . . . . . . . . . . . Ballistic Gun . | . . . . . . . . . . . . . . . . . . . . . . . . . Ballistic Cannon . | . . . . . . . . . . . . . . . . . . . . . . . . . Launcher . | . . . . . . . . . . . . . . . . . . . . . . . . . Special Weapon . | . . . . . . . . . . . . . . . . . . . . . . . . . Impact Weapon . | . . . . . . . . . . . . . . . . . . . . . . . . . Slashing Weapon . | . . . . . . . . . . . . . . . . . . . . . . . . . Piercing Weapon . | . . . . . . . . . . . . . . . . . . . . . . . . . Special Melee Weapon . | . . . . . . . . . . . . . . . . . . . . . . . . . Unidentified Prototypes . | . . . . . . . . . . . . . . . . . . . . . . . . . Parts Lost 24 | . . . . . . 3 . . . . . 1 . 2 . . 3 . . 9 1 . . 5 Power 7 | . . . . . . 1 . . . . . . . 1 . . 1 . . 1 1 . . 2 Propulsion 11 | . . . . . . 1 . . . . . 1 . 1 . . 1 . . 4 . . . 3 Utility 2 | . . . . . . . . . . . . . . . . . . . . 2 . . . . Weapon 4 | . . . . . . 1 . . . . . . . . . . 1 . . 2 . . . . Highest Loss Streak 6 | . . . . . . 2 . . . . . 1 . 1 . . 3 . . 6 1 . . 3 To Critical Strikes . | . . . . . . . . . . . . . . . . . . . . . . . . . Average Backups . | . . . . . . . . . . . . . . . . . . . . . . . . . Power . | . . . . . . . . . . . . . . . . . . . . . . . . . Propulsion . | . . . . . . . . . . . . . . . . . . . . . . . . . Utility . | . . . . . . . . . . . . . . . . . . . . . . . . . Weapon . | . . . . . . . . . . . . . . . . . . . . . . . . . Tool/Special . | . . . . . . . . . . . . . . . . . . . . . . . . . Unused Backups . | . . . . . . . . . . . . . . . . . . . . . . . . . Power . | . . . . . . . . . . . . . . . . . . . . . . . . . Propulsion . | . . . . . . . . . . . . . . . . . . . . . . . . . Utility . | . . . . . . . . . . . . . . . . . . . . . . . . . Weapon . | . . . . . . . . . . . . . . . . . . . . . . . . . Tool/Special . | . . . . . . . . . . . . . . . . . . . . . . . . . Average Slot Usage (%) 57 | . 55 100 100 100 100 76 25 25 25 25 25 29 100 95 60 57 92 25 16 48 34 . . 43 Engine 6 | . 13 25 25 25 25 13 . . . . . 3 20 15 . . . . . . . . . 2 Reactor 3 | . . . . . . . . . . . . . . . . . . . . 12 17 . . 6 Leg 10 | . . . . . . . . . . . . 6 40 40 20 19 . . . . . . . . Flight 18 | . 27 50 50 50 50 48 25 25 25 25 25 12 . . . . 50 25 16 21 17 . . 20 Device 6 | . . . . . . . . . . . . 3 20 20 20 19 . . . 1 . . . . Energy Gun 5 | . . . . . . . . . . . . 3 20 20 20 19 . . . . . . . . Ballistic Gun 5 | . 13 25 25 25 25 14 . . . . . . . . . . 21 . . 8 . . . 6 Peak Build Rating 24 | . 4 4 4 4 4 4 1 1 1 1 1 20 20 20 12 12 9 2 2 24 11 . . 24 Average Rating 9 | . 2 4 4 4 4 3 1 1 1 1 1 3 20 18 12 11 7 2 1 11 9 . . 8 On Entrance 4 | . . 4 4 4 4 4 1 1 1 1 1 1 20 20 12 12 9 2 2 . 11 . . . Naked Turns 411 | . 32 . . . . . . . . . . 15 . . . 2 . . 5 82 28 18 104 125 Heaviest Build 17 | . 4 4 4 4 4 4 . . . . . 14 14 14 5 8 8 . . 17 12 . . 17 Greatest Support 30 | 3 8 8 8 8 8 8 4 4 4 4 4 30 30 30 15 15 8 4 4 20 6 3 3 20 Greatest Overweight (x) 3 | . . . . . . . . . . . . . . . . . . . . 1 1 . . 3 Average Overweight (x) . | . . . . . . . . . . . . . . . . . . . . . . . . . Largest Inventory Capacity 1 | . . . . . . . . . . . . 1 1 1 1 1 . . . . . . . 1 Average Capacity . | . . . . . . . . . . . . . 1 1 1 . . . . . . . . . Most Carried . | . . . . . . . . . . . . . . . . . . . . . . . . . Average Carried . | . . . . . . . . . . . . . . . . . . . . . . . . . Final Capacity 1 | . . . . . . . . . . . . 1 1 1 1 . . . . . . . . 1 Final Carried . | . . . . . . . . . . . . . . . . . . . . . . . . . Class Distribution -------------------- 48% | Swarmer 30% | Grunt 16% | Cogmind Dominant Class ---------------- Swarmer | -10/Materials Swarmer | -10/Mines Swarmer | -9/Materials Swarmer | -9/Mines Swarmer | -8/Materials Swarmer | -8/Storage Swarmer | -8/Garrison Swarmer | -7/Factory Swarmer | -7/Lower Caves Swarmer | -7/Lower Caves Swarmer | -6/Factory Swarmer | -6/DSF Grunt | -5/Factory Grunt | -5/Upper Caves Grunt | -5/Upper Caves Grunt | -4/Factory Swarmer | -4/Garrison Swarmer | -4/Factory Swarmer | -4/DSF Swarmer | -3/Research Swarmer | -3/Garrison Cogmind | -2/Research Cogmind | -2/DSF Cogmind | -1/Access Resources | -11 -10 -10 -9 -9 -8 -8 -8 -7 -7 -7 -6 -6 -5 -5 -5 -4 -4 -4 -4 -3 -3 -2 -2 -1 ----------- Run | Yrd Mat Min Mat Min Mat Sto Gar Fac Low Low Fac DSF Fac Upp Upp Fac Gar Fac DSF Res Gar Res DSF Acc Matter Collected 134 | . 6 . . . . 11 . . . . . . . . . . 12 . . 105 . . . . Remotely . | . . . . . . . . . . . . . . . . . . . . . . . . . Salvage Created 197 | . 58 . . . . . . . . . . . . . . . 36 . . 103 . . . . Parts 18 | . 3 . 6 . . . . . . . . . . . . . 1 . . 8 . . . . Haulers Intercepted . | . . . . . . . . . . . . . . . . . . . . . . . . . Recyclers Shooed . | . . . . . . . . . . . . . . . . . . . . . . . . . Parts Field Recycled . | . . . . . . . . . . . . . . . . . . . . . . . . . Retrieved Matter . | . . . . . . . . . . . . . . . . . . . . . . . . . Parts Self-Destructed . | . . . . . . . . . . . . . . . . . . . . . . . . . Prevented 3 | . . . . . . . . . 3 . . . . . . . . . . . . . . . Kills | -11 -10 -10 -9 -9 -8 -8 -8 -7 -7 -7 -6 -6 -5 -5 -5 -4 -4 -4 -4 -3 -3 -2 -2 -1 ------- Run | Yrd Mat Min Mat Min Mat Sto Gar Fac Low Low Fac DSF Fac Upp Upp Fac Gar Fac DSF Res Gar Res DSF Acc Combat Hostiles Destroyed 9 | . 1 . 1 . . . . . . . . . . . . . 3 . . 4 . . . . Guns 9 | . 1 . 1 . . . . . . . . . . . . . 3 . . 4 . . . . Classes Destroyed 3 | . 1 . 1 . . . . . . . . . . . . . 1 . . . . . . . Swarmer 7 | . . . . . . . . . . . . . . . . . 3 . . 4 . . . . Grunt 1 | . 1 . . . . . . . . . . . . . . . . . . . . . . . Sentry 1 | . . . 1 . . . . . . . . . . . . . . . . . . . . . Best Kill Streak 3 | . 1 . 1 . . . . . . . . . . . . . 3 . . 3 . . . . Combat Bots Only 3 | . 1 . 1 . . . . . . . . . . . . . 3 . . 3 . . . . Max Kills in Single Turn 1 | . 1 . 1 . . . . . . . . . . . . . 1 . . 1 . . . . Gunslinging . | . . . . . . . . . . . . . . . . . . . . . . . . . Exploded . | . . . . . . . . . . . . . . . . . . . . . . . . . Melee . | . . . . . . . . . . . . . . . . . . . . . . . . . Uniques/NPCs Destroyed . | . . . . . . . . . . . . . . . . . . . . . . . . . Combat | -11 -10 -10 -9 -9 -8 -8 -8 -7 -7 -7 -6 -6 -5 -5 -5 -4 -4 -4 -4 -3 -3 -2 -2 -1 -------- Run | Yrd Mat Min Mat Min Mat Sto Gar Fac Low Low Fac DSF Fac Upp Upp Fac Gar Fac DSF Res Gar Res DSF Acc Hostile Shots Fired 585 | . 5 . 12 . . 40 . . . . . 14 . 29 . 14 72 . 18 170 16 . 5 190 Missed 264 | . 3 . 8 . . 20 . . . . . 3 . 11 . 7 42 . 9 78 7 . 2 74 Hits 321 | . 2 . 4 . . 20 . . . . . 11 . 18 . 7 30 . 9 92 9 . 3 116 Melee 5 | . . . . . . . . . . . . . . . . . . . 5 . . . . . Projectile 316 | . 2 . 4 . . 20 . . . . . 11 . 18 . 7 30 . 4 92 9 . 3 116 AOE 1 | . . . . . . . . . . . . . . . . . . . 1 . . . . . Critical Strikes 16 | . . . . . . 2 . . . . . 1 . 1 . . . . 2 2 2 . . 6 Damage Taken 5342 | . 17 . 44 . . 240 . . . . . 200 . 204 . 98 477 . 146 1568 151 . 198 1999 Core 3633 | . 17 . 21 . . 97 . . . . . 92 . . . 56 273 . 146 990 137 . 198 1606 Absorbed by Shields 76 | . . . . . . . . . . . . . . . . . . . . . 58 . 18 . Ignored by Resistances 1406 | . 5 . 12 . . 67 . . . . . 50 . 26 . 21 134 . 38 412 40 . 57 544 Core Remaining (%) 81 | 100 . 93 . 94 . . 82 . . 100 . 89 . . 100 . . . 58 . 13 . 86 . Volleys Fired 38 | . 6 . 7 . . 4 . . . . . . . . . . 8 . . 12 . . . 1 Largest 1 | . 1 . 1 . . 1 . . . . . . . . . . 1 . . 1 . . . 1 Hottest 30 | . 20 . 20 . . 20 . . . . . . . . . . 23 . . 30 . . . 30 Shots Fired 38 | . 6 . 7 . . 4 . . . . . . . . . . 8 . . 12 . . . 1 Gun 37 | . 6 . 7 . . 4 . . . . . . . . . . 8 . . 11 . . . 1 Cannon . | . . . . . . . . . . . . . . . . . . . . . . . . . Launcher . | . . . . . . . . . . . . . . . . . . . . . . . . . Special 1 | . . . . . . . . . . . . . . . . . . . . 1 . . . . Kinetic 37 | . 6 . 7 . . 4 . . . . . . . . . . 8 . . 11 . . . 1 Thermal 1 | . . . . . . . . . . . . . . . . . . . . 1 . . . . Explosive . | . . . . . . . . . . . . . . . . . . . . . . . . . Electromagnetic . | . . . . . . . . . . . . . . . . . . . . . . . . . Robot Hit Streak 14 | . 3 . 10 . . 14 . . . . . . . . . . 7 . . 8 . . . 3 Robot Miss Streak 1 | . 1 . . . . . . . . . . . . . . . 1 . . 1 . . . . Penetration Max . | . . . . . . . . . . . . . . . . . . . . . . . . . Secondary Targets . | . . . . . . . . . . . . . . . . . . . . . . . . . Shots Hit Robots 33 | . 4 . 7 . . 4 . . . . . . . . . . 7 . . 10 . . . 1 Core Hits 19 | . 3 . 3 . . 1 . . . . . . . . . . 4 . . 7 . . . 1 Critical Kills 1 | . . . 1 . . . . . . . . . . . . . . . . . . . . . Critical Parts Destroyed . | . . . . . . . . . . . . . . . . . . . . . . . . . Critical Strikes 2 | . . . 2 . . . . . . . . . . . . . . . . . . . . . Destroy 2 | . . . 2 . . . . . . . . . . . . . . . . . . . . . Melee Attacks . | . . . . . . . . . . . . . . . . . . . . . . . . . Impact . | . . . . . . . . . . . . . . . . . . . . . . . . . Slashing . | . . . . . . . . . . . . . . . . . . . . . . . . . Piercing . | . . . . . . . . . . . . . . . . . . . . . . . . . Sneak Attacks . | . . . . . . . . . . . . . . . . . . . . . . . . . Combat Hostiles . | . . . . . . . . . . . . . . . . . . . . . . . . . Follow-up Attacks . | . . . . . . . . . . . . . . . . . . . . . . . . . Damage Inflicted 608 | . 41 . 60 . . 20 . . . . . 23 . . . . 105 . 5 272 27 . . 55 Guns 495 | . 41 . 60 . . 20 . . . . . . . . . . 105 . . 246 . . . 23 Cannons . | . . . . . . . . . . . . . . . . . . . . . . . . . Explosions . | . . . . . . . . . . . . . . . . . . . . . . . . . Melee . | . . . . . . . . . . . . . . . . . . . . . . . . . Ramming 113 | . . . . . . . . . . . . 23 . . . . . . 5 26 27 . . 32 Kinetic 495 | . 41 . 60 . . 20 . . . . . . . . . . 105 . . 246 . . . 23 Thermal . | . . . . . . . . . . . . . . . . . . . . . . . . . Explosive . | . . . . . . . . . . . . . . . . . . . . . . . . . Electromagnetic . | . . . . . . . . . . . . . . . . . . . . . . . . . Impact . | . . . . . . . . . . . . . . . . . . . . . . . . . Slashing . | . . . . . . . . . . . . . . . . . . . . . . . . . Piercing . | . . . . . . . . . . . . . . . . . . . . . . . . . Highest Corruption 2 | . . . . . . . . . . . . . . . . 2 2 2 2 . . . . 1 Average Corruption 1 | . . . . . . . . . . . . . . . . 2 2 2 2 . . . . 1 Corruption Purged . | . . . . . . . . . . . . . . . . . . . . . . . . . Corruption Blocked . | . . . . . . . . . . . . . . . . . . . . . . . . . Effects 5 | . . . . . . . . . . . . . . . . . 2 2 . . . . . 1 Heat Flow Errors 3 | . . . . . . . . . . . . . . . . . . 2 . . . . . 1 Data Loss (minor) 1 | . . . . . . . . . . . . . . . . . 1 . . . . . . . Data Loss (major) 1 | . . . . . . . . . . . . . . . . . 1 . . . . . . . Overload Shots . | . . . . . . . . . . . . . . . . . . . . . . . . . Overflow Damage . | . . . . . . . . . . . . . . . . . . . . . . . . . Projectiles . | . . . . . . . . . . . . . . . . . . . . . . . . . Explosions . | . . . . . . . . . . . . . . . . . . . . . . . . . Melee . | . . . . . . . . . . . . . . . . . . . . . . . . . Knockbacks . | . . . . . . . . . . . . . . . . . . . . . . . . . Impact . | . . . . . . . . . . . . . . . . . . . . . . . . . Kinetic . | . . . . . . . . . . . . . . . . . . . . . . . . . Secondary . | . . . . . . . . . . . . . . . . . . . . . . . . . Self-Inflicted Damage 48 | . . . . . . . . . . . . 11 . . . . . . 2 12 10 . . 13 Shots . | . . . . . . . . . . . . . . . . . . . . . . . . . Rammed 46 | . . . . . . . . . . . . 3 . . . . . . 1 14 14 . . 14 Targets Rammed 46 | . . . . . . . . . . . . 3 . . . . . . 1 14 14 . . 14 Kicked . | . . . . . . . . . . . . . . . . . . . . . . . . . Crushed . | . . . . . . . . . . . . . . . . . . . . . . . . . Highest Temperature 259 | . 20 . 22 . . 11 . . . . . . . . . 5 20 259 . 21 12 . . 181 Average Temperature 56 | . 10 . 10 . . 6 . . . . . . . . . 5 11 112 . 12 12 . . 127 Received Heat Transfer 418 | . 6 . 18 . . 90 . . . . . 90 . 12 . . . . 24 54 52 . . 72 Siege Activations . | . . . . . . . . . . . . . . . . . . . . . . . . . Martial Activations . | . . . . . . . . . . . . . . . . . . . . . . . . . Shielding Activations . | . . . . . . . . . . . . . . . . . . . . . . . . . Robots Disrupted . | . . . . . . . . . . . . . . . . . . . . . . . . . Combat Hostiles . | . . . . . . . . . . . . . . . . . . . . . . . . . Robots Corrupted . | . . . . . . . . . . . . . . . . . . . . . . . . . Combat Hostiles . | . . . . . . . . . . . . . . . . . . . . . . . . . Parts Fried . | . . . . . . . . . . . . . . . . . . . . . . . . . Impact Corruptions . | . . . . . . . . . . . . . . . . . . . . . . . . . Robots Melted . | . . . . . . . . . . . . . . . . . . . . . . . . . Combat Hostiles . | . . . . . . . . . . . . . . . . . . . . . . . . . Parts Melted . | . . . . . . . . . . . . . . . . . . . . . . . . . Heat Transferred . | . . . . . . . . . . . . . . . . . . . . . . . . . Parts Sabotaged . | . . . . . . . . . . . . . . . . . . . . . . . . . Parts Stolen . | . . . . . . . . . . . . . . . . . . . . . . . . . Parts Stripped . | . . . . . . . . . . . . . . . . . . . . . . . . . Power Chain Reactions . | . . . . . . . . . . . . . . . . . . . . . . . . . Alert | -11 -10 -10 -9 -9 -8 -8 -8 -7 -7 -7 -6 -6 -5 -5 -5 -4 -4 -4 -4 -3 -3 -2 -2 -1 ------- Run | Yrd Mat Min Mat Min Mat Sto Gar Fac Low Low Fac DSF Fac Upp Upp Fac Gar Fac DSF Res Gar Res DSF Acc Maximum Alert Level 1 | . . . . . . . . . . . . . . . . . 1 . . . . . . . Low Security (%) 99 | 100 100 100 100 100 100 100 100 100 . . 100 100 100 . . 100 98 100 100 100 100 100 100 100 Level 1 . | . . . . . . . . . . . . . . . . . 1 . . . . . . . Level 2 . | . . . . . . . . . . . . . . . . . . . . . . . . . Level 3 . | . . . . . . . . . . . . . . . . . . . . . . . . . Level 4 . | . . . . . . . . . . . . . . . . . . . . . . . . . Level 5 . | . . . . . . . . . . . . . . . . . . . . . . . . . High Security . | . . . . . . . . . . . . . . . . . . . . . . . . . Max Security . | . . . . . . . . . . . . . . . . . . . . . . . . . Peak Influence 205 | . 30 6 35 11 4 92 23 10 . . . . . . . 15 205 83 32 40 173 79 100 52 Initial 83 | . . 6 . 11 . . 23 10 . . . . . . . . 10 83 32 15 23 79 55 52 Average 29 | . 3 3 10 6 1 38 23 6 . . . . . . . . 88 69 32 12 82 79 73 24 Influence Increases 929 | . 30 . 45 . 4 152 . . . . . . . . . 18 205 . . 156 150 4 45 120 Destroy 0b10 Robot/C 200 | . 20 . 20 . . 20 . . . . . . . . . . 60 . . 80 . . . . Destroy Leader 50 | . 10 . 10 . . 10 . . . . . . . . . . 10 . . 10 . . . . Allied During Kill 2 | . . . . . . 2 . . . . . . . . . . . . . . . . . . Successful Hack 32 | . . . . . 4 . . . . . . . . . . 3 . . . 21 . 4 . . Anti-Garrison Action 150 | . . . . . . . . . . . . . . . . . . . . . 150 . . . Partial Spotted 150 | . . . 15 . . 75 . . . . . . . . . 15 30 . . . . . . 15 Lose Combat Pursuer 345 | . . . . . . 45 . . . . . . . . . . 105 . . 45 . . 45 105 Influence Decreases 894 | . 10 20 10 34 5 110 19 23 . . . . . . . . 38 132 21 152 23 84 28 185 Entered New Map 392 | . . 14 . 24 1 . 19 13 . . . . . . . . 8 102 21 17 13 84 28 48 Time Decay 357 | . 10 6 10 10 4 60 . 10 . . . . . . . . . 30 . 110 . . . 107 Lost Part 125 | . . . . . . 30 . . . . . . . . . . 30 . . 25 10 . . 30 Lost Ally 20 | . . . . . . 20 . . . . . . . . . . . . . . . . . . Squads Dispatched 13 | . 1 . . . . 3 . . . . . 1 . . . 1 . . 1 2 . . . 4 Investigation 3 | . 1 . . . . . . . . . . . . . . . . . . . . . . 2 Extermination 3 | . . . . . . . . . . . . . . . . 1 . . . 1 . . . 1 Reinforcement 5 | . . . . . . 1 . . . . . 1 . . . . . . 1 1 . . . 1 Assault 2 | . . . . . . 2 . . . . . . . . . . . . . . . . . . Garrison . | . . . . . . . . . . . . . . . . . . . . . . . . . Intercept . | . . . . . . . . . . . . . . . . . . . . . . . . . Searches Triggered . | . . . . . . . . . . . . . . . . . . . . . . . . . Construction Impeded . | . . . . . . . . . . . . . . . . . . . . . . . . . Haulers Reinforced . | . . . . . . . . . . . . . . . . . . . . . . . . . Active Scanning Responses . | . . . . . . . . . . . . . . . . . . . . . . . . . Cargo Convoy Interrupts . | . . . . . . . . . . . . . . . . . . . . . . . . . Stealth | -11 -10 -10 -9 -9 -8 -8 -8 -7 -7 -7 -6 -6 -5 -5 -5 -4 -4 -4 -4 -3 -3 -2 -2 -1 --------- Run | Yrd Mat Min Mat Min Mat Sto Gar Fac Low Low Fac DSF Fac Upp Upp Fac Gar Fac DSF Res Gar Res DSF Acc Distress Signals 1 | . . . . . . . . . . . . . . . . . 1 . . . . . . . Communications Jammed . | . . . . . . . . . . . . . . . . . . . . . . . . . Distress Signals . | . . . . . . . . . . . . . . . . . . . . . . . . . Times Spotted 131 | . 5 5 2 . . 8 . . . . . 6 . 2 . 16 19 . 6 20 2 . 3 37 Peak Tracking Total 18 | . 3 18 2 . . 6 . . . . . 4 . 2 . 9 15 . 7 7 2 . 1 13 Tactical Retreats 10 | . . . . . . 1 . . . . . . . . . . 1 . . 3 . . 3 2 Traps | -11 -10 -10 -9 -9 -8 -8 -8 -7 -7 -7 -6 -6 -5 -5 -5 -4 -4 -4 -4 -3 -3 -2 -2 -1 ------- Run | Yrd Mat Min Mat Min Mat Sto Gar Fac Low Low Fac DSF Fac Upp Upp Fac Gar Fac DSF Res Gar Res DSF Acc Traps Triggered 3 | . 1 . . . . . . . . . . . . . . . . . . . . . 1 1 Indirectly . | . . . . . . . . . . . . . . . . . . . . . . . . . Trap Hack Attempts . | . . . . . . . . . . . . . . . . . . . . . . . . . Triggered . | . . . . . . . . . . . . . . . . . . . . . . . . . Disarmed . | . . . . . . . . . . . . . . . . . . . . . . . . . Reprogrammed . | . . . . . . . . . . . . . . . . . . . . . . . . . Reused . | . . . . . . . . . . . . . . . . . . . . . . . . . Traps Extracted . | . . . . . . . . . . . . . . . . . . . . . . . . . Installed . | . . . . . . . . . . . . . . . . . . . . . . . . . Triggered . | . . . . . . . . . . . . . . . . . . . . . . . . . Machines | -11 -10 -10 -9 -9 -8 -8 -8 -7 -7 -7 -6 -6 -5 -5 -5 -4 -4 -4 -4 -3 -3 -2 -2 -1 ---------- Run | Yrd Mat Min Mat Min Mat Sto Gar Fac Low Low Fac DSF Fac Upp Upp Fac Gar Fac DSF Res Gar Res DSF Acc Machines Disabled . | . . . . . . . . . . . . . . . . . . . . . . . . . Max in Single Turn . | . . . . . . . . . . . . . . . . . . . . . . . . . Garrison Relay 1 | . . . . . . . . . . . . . . . . . 1 . . . . . . . Machines Repaired . | . . . . . . . . . . . . . . . . . . . . . . . . . Machines Dismantled . | . . . . . . . . . . . . . . . . . . . . . . . . . Machines Sabotaged . | . . . . . . . . . . . . . . . . . . . . . . . . . Overloaded Fab Kills . | . . . . . . . . . . . . . . . . . . . . . . . . . Hacking | -11 -10 -10 -9 -9 -8 -8 -8 -7 -7 -7 -6 -6 -5 -5 -5 -4 -4 -4 -4 -3 -3 -2 -2 -1 --------- Run | Yrd Mat Min Mat Min Mat Sto Gar Fac Low Low Fac DSF Fac Upp Upp Fac Gar Fac DSF Res Gar Res DSF Acc Machines Accessed 15 | . . . . . 2 3 . . . . 1 . . 1 . 1 . 1 . 2 1 1 . 2 Terminals 10 | . . . . . 2 2 . . . . 1 . . . . . . 1 . 1 1 1 . 1 Fabricators . | . . . . . . . . . . . . . . . . . . . . . . . . . Repair Stations . | . . . . . . . . . . . . . . . . . . . . . . . . . Recycling Units . | . . . . . . . . . . . . . . . . . . . . . . . . . Scanalyzers . | . . . . . . . . . . . . . . . . . . . . . . . . . Garrison Access 4 | . . . . . . 1 . . . . . . . . . 1 . . . 1 . . . 1 Total Hacks 22 | . . . . . 3 3 . . . . 2 . . 1 . 1 . 1 . 4 2 1 . 4 Successful 9 | . . . . . 1 2 . . . . 1 . . 1 . 1 . 1 . 1 . 1 . . Failed 13 | . . . . . 2 1 . . . . 1 . . . . . . . . 3 2 . . 4 Catastrophic 6 | . . . . . 1 . . . . . . . . . . . . . . 2 . . . 3 Database Lockouts . | . . . . . . . . . . . . . . . . . . . . . . . . . Manual 6 | . . . . . 2 1 . . . . . . . . . . . 1 . 2 . . . . Terminals 15 | . . . . . 3 2 . . . . 2 . . . . . . 1 . 2 2 1 . 2 Fabricators . | . . . . . . . . . . . . . . . . . . . . . . . . . Repair Stations . | . . . . . . . . . . . . . . . . . . . . . . . . . Recycling Units . | . . . . . . . . . . . . . . . . . . . . . . . . . Scanalyzers . | . . . . . . . . . . . . . . . . . . . . . . . . . Garrison Access 6 | . . . . . . 1 . . . . . . . . . 1 . . . 2 . . . 2 Terminal Hacks 6 | . . . . . 1 1 . . . . 1 . . 1 . . . 1 . . . 1 . . Open Door 2 | . . . . . . 1 . . . . . . . 1 . . . . . . . . . . Open DSF 3 | . . . . . . . . . . . 1 . . . . . . 1 . . . 1 . . Zone Layout 1 | . . . . . 1 . . . . . . . . . . . . . . . . . . . Fabricator Hacks . | . . . . . . . . . . . . . . . . . . . . . . . . . Repair Station Hacks . | . . . . . . . . . . . . . . . . . . . . . . . . . Recycling Unit Hacks . | . . . . . . . . . . . . . . . . . . . . . . . . . Scanalyzer . | . . . . . . . . . . . . . . . . . . . . . . . . . Garrison Access Hacks 3 | . . . . . . 1 . . . . . . . . . 1 . . . 1 . . . . Unlock Access 3 | . . . . . . 1 . . . . . . . . . 1 . . . 1 . . . . Unauthorized Hacks . | . . . . . . . . . . . . . . . . . . . . . . . . . Terminals . | . . . . . . . . . . . . . . . . . . . . . . . . . Fabricators . | . . . . . . . . . . . . . . . . . . . . . . . . . Repair Stations . | . . . . . . . . . . . . . . . . . . . . . . . . . Recycling Units . | . . . . . . . . . . . . . . . . . . . . . . . . . Scanalyzers . | . . . . . . . . . . . . . . . . . . . . . . . . . Garrison Access . | . . . . . . . . . . . . . . . . . . . . . . . . . Data Cores Recovered . | . . . . . . . . . . . . . . . . . . . . . . . . . Used . | . . . . . . . . . . . . . . . . . . . . . . . . . Hacking Detections 9 | . . . . . 2 1 . . . . 1 . . . . . . . . 2 1 . . 2 Full Trace Events 3 | . . . . . . . . . . . . . . . . . . . . . 1 . . 2 Feedback Events . | . . . . . . . . . . . . . . . . . . . . . . . . . Feedback Blocked . | . . . . . . . . . . . . . . . . . . . . . . . . . Robot Schematics Acquired . | . . . . . . . . . . . . . . . . . . . . . . . . . Robots Built . | . . . . . . . . . . . . . . . . . . . . . . . . . Authchips . | . . . . . . . . . . . . . . . . . . . . . . . . . Time . | . . . . . . . . . . . . . . . . . . . . . . . . . Total Robot Build Rating . | . . . . . . . . . . . . . . . . . . . . . . . . . Part Schematics Acquired . | . . . . . . . . . . . . . . . . . . . . . . . . . Parts Built . | . . . . . . . . . . . . . . . . . . . . . . . . . Authchips . | . . . . . . . . . . . . . . . . . . . . . . . . . Time . | . . . . . . . . . . . . . . . . . . . . . . . . . Total Part Build Rating . | . . . . . . . . . . . . . . . . . . . . . . . . . Parts Repaired . | . . . . . . . . . . . . . . . . . . . . . . . . . Time . | . . . . . . . . . . . . . . . . . . . . . . . . . Parts Recycled . | . . . . . . . . . . . . . . . . . . . . . . . . . Recycled Matter . | . . . . . . . . . . . . . . . . . . . . . . . . . Retrieved Matter . | . . . . . . . . . . . . . . . . . . . . . . . . . Retrieved Components . | . . . . . . . . . . . . . . . . . . . . . . . . . Parts Scanalyzed . | . . . . . . . . . . . . . . . . . . . . . . . . . Part Schematics Acquired . | . . . . . . . . . . . . . . . . . . . . . . . . . Parts Damaged . | . . . . . . . . . . . . . . . . . . . . . . . . . Bothacking | -11 -10 -10 -9 -9 -8 -8 -8 -7 -7 -7 -6 -6 -5 -5 -5 -4 -4 -4 -4 -3 -3 -2 -2 -1 ------------ Run | Yrd Mat Min Mat Min Mat Sto Gar Fac Low Low Fac DSF Fac Upp Upp Fac Gar Fac DSF Res Gar Res DSF Acc Used RIF Installer . | . . . . . . . . . . . . . . . . . . . . . . . . . Robots Hacked 6 | . 1 . . . . . . . . . . 1 . . . 1 . . . 2 . . . 1 Non-combat 1 | . . . . . . . . . . . . . . . . . . . . 1 . . . . Combat 5 | . 1 . . . . . . . . . . 1 . . . 1 . . . 1 . . . 1 Robot Hacks Applied 9 | . 1 . . . . . . . . . . 1 . . . 2 . . . 3 . . . 2 map_walls 1 | . . . . . . . . . . . . . . . . . . . . 1 . . . . find_shortcuts 5 | . 1 . . . . . . . . . . 1 . . . 1 . . . 1 . . . 1 find_garrison 3 | . . . . . . . . . . . . . . . . 1 . . . 1 . . . 1 Relay Couplers Released 4 | . . . . . . . . . . . . . . . . . 4 . . . . . . . Machine Destruction 4 | . . . . . . . . . . . . . . . . . 4 . . . . . . . Fabnet Peak Effective % . | . . . . . . . . . . . . . . . . . . . . . . . . . Robots Rewired . | . . . . . . . . . . . . . . . . . . . . . . . . . Allies Hacked . | . . . . . . . . . . . . . . . . . . . . . . . . . Hacks Repelled . | . . . . . . . . . . . . . . . . . . . . . . . . . Allies | -11 -10 -10 -9 -9 -8 -8 -8 -7 -7 -7 -6 -6 -5 -5 -5 -4 -4 -4 -4 -3 -3 -2 -2 -1 -------- Run | Yrd Mat Min Mat Min Mat Sto Gar Fac Low Low Fac DSF Fac Upp Upp Fac Gar Fac DSF Res Gar Res DSF Acc Total Allies 2 | . . . . . . 2 . . . . . . . . . . . . . . . . . . Largest Group 2 | . . . . . . 2 1 . . . . . . . . . . . . . . . . . Highest-Rated Group 62 | . . . . . . 62 18 . . . . . . . . . . . . . . . . . Highest-Rated Ally 31 | . . . . . . 31 18 . . . . . . . . . . . . . . . . . Initial Warlord ECA Mod 4 | . . . . . . . . . . . . . . . . . . 1 1 . . 1 1 . Total Orders . | . . . . . . . . . . . . . . . . . . . . . . . . . Ally Attacks 7 | . . . . . . 7 . . . . . . . . . . . . . . . . . . Total Damage 104 | . . . . . . 104 . . . . . . . . . . . . . . . . . . Kills 1 | . . . . . . 1 . . . . . . . . . . . . . . . . . . Allies Corrupted . | . . . . . . . . . . . . . . . . . . . . . . . . . Allies Melted . | . . . . . . . . . . . . . . . . . . . . . . . . . Intel | -11 -10 -10 -9 -9 -8 -8 -8 -7 -7 -7 -6 -6 -5 -5 -5 -4 -4 -4 -4 -3 -3 -2 -2 -1 ------- Run | Yrd Mat Min Mat Min Mat Sto Gar Fac Low Low Fac DSF Fac Upp Upp Fac Gar Fac DSF Res Gar Res DSF Acc Active Infowar (turns) 28 | . . . . . . . . . . . . . . . . . . . . 28 . . . . Terrain 28 | . . . . . . . . . . . . . . . . . . . . 28 . . . . Structural 9 | . . . . . . . . . . . . . . . . . . . . 9 . . . . Robot Analysis Total 6 | . 1 . . . . . . . . . . 1 . . . 1 . . . 2 . . . 1 Derelict Logs Recovered 2 | . . . . 1 . . . . 1 . . . . . . . . . . . . . . . Drone Launches . | . . . . . . . . . . . . . . . . . . . . . . . . . Drone Recoveries . | . . . . . . . . . . . . . . . . . . . . . . . . . Exploration | -11 -10 -10 -9 -9 -8 -8 -8 -7 -7 -7 -6 -6 -5 -5 -5 -4 -4 -4 -4 -3 -3 -2 -2 -1 ------------- Run | Yrd Mat Min Mat Min Mat Sto Gar Fac Low Low Fac DSF Fac Upp Upp Fac Gar Fac DSF Res Gar Res DSF Acc Turns Passed 2575 | 11 80 29 35 33 24 160 51 30 112 21 6 47 134 412 36 191 66 70 22 378 218 18 104 287 Spaces Moved 3706 | 22 166 77 59 88 64 373 128 75 280 51 15 90 112 344 31 167 162 200 57 416 190 35 144 360 Core 849 | 22 62 . . . . . . . . . . 23 . . . 2 . . 9 223 38 35 144 291 Treads . | . . . . . . . . . . . . . . . . . . . . . . . . . Legs 650 | . . . . . . . . . . . . 8 112 344 31 155 . . . . . . . . Wheels 42 | . . . . . . . . . . . . . . . . . . . . 16 . . . 26 Hover . | . . . . . . . . . . . . . . . . . . . . . . . . . Flight 2165 | . 104 77 59 88 64 373 128 75 280 51 15 59 . . . 10 162 200 48 177 152 . . 43 Fastest Speed 32 | 50 37 37 37 37 37 37 40 40 40 40 40 40 120 120 120 32 32 35 35 50 40 50 50 34 Average Speed 62 | 50 41 37 37 37 37 37 40 40 40 40 40 49 120 120 120 113 32 35 37 80 105 50 50 51 Slowest Speed 200 | 50 50 37 37 37 37 40 40 40 40 40 40 120 120 120 120 120 35 35 50 120 120 50 50 200 Overloaded Moves . | . . . . . . . . . . . . . . . . . . . . . . . . . Propulsion Burnouts . | . . . . . . . . . . . . . . . . . . . . . . . . . Robots Hopped 17 | . 2 . . . . 6 . . . 1 . . . . . . 5 . . . . . . 3 Potential Cave-ins . | . . . . . . . . . . . . . . . . . . . . . . . . . Cave-ins Triggered . | . . . . . . . . . . . . . . . . . . . . . . . . . Exploration Rate (%) 27 | 3 25 20 15 22 13 62 35 3 56 9 . 87 2 53 10 8 33 8 65 16 26 2 83 13 Regions Visited 24 Branch Regions 7 Pre-discovered Areas 1 | . . . . 1 . . . . . . . . . . . . . . . . . . . . Known Exits Taken 6 | . . . . . . 1 . . . . 1 . . . . 1 . 1 . 1 . 1 . . Unknown Exits Taken 12 | 1 1 1 1 1 1 . . 1 1 1 . . 1 1 1 . . . . . . . . . Scrap Searched 3 | . . . . . . . . . . 3 . . . . . . . . . . . . . . Spaces Dug . | . . . . . . . . . . . . . . . . . . . . . . . . . Terrain Destroyed . | . . . . . . . . . . . . . . . . . . . . . . . . . Melee . | . . . . . . . . . . . . . . . . . . . . . . . . . Projectile . | . . . . . . . . . . . . . . . . . . . . . . . . . AOE . | . . . . . . . . . . . . . . . . . . . . . . . . . Terrain Rammed . | . . . . . . . . . . . . . . . . . . . . . . . . . Walls Destroyed . | . . . . . . . . . . . . . . . . . . . . . . . . . Machines Disabled . | . . . . . . . . . . . . . . . . . . . . . . . . . Actions | -11 -10 -10 -9 -9 -8 -8 -8 -7 -7 -7 -6 -6 -5 -5 -5 -4 -4 -4 -4 -3 -3 -2 -2 -1 --------- Run | Yrd Mat Min Mat Min Mat Sto Gar Fac Low Low Fac DSF Fac Upp Upp Fac Gar Fac DSF Res Gar Res DSF Acc Total 3890 | 21 169 76 65 87 63 384 127 74 279 49 14 92 111 343 30 167 161 199 57 449 206 34 175 458 Wait 136 | . . . . . . 14 . . . . . . . . . 1 . . . 8 2 . 25 86 Move 3648 | 21 161 76 58 87 63 361 127 74 279 48 14 89 111 343 30 166 149 199 56 415 189 34 143 355 Hop 14 | . 2 . . . . 5 . . . 1 . . . . . . 4 . . . . . . 2 Pick Up . | . . . . . . . . . . . . . . . . . . . . . . . . . Fast Attach . | . . . . . . . . . . . . . . . . . . . . . . . . . Attach . | . . . . . . . . . . . . . . . . . . . . . . . . . Detach . | . . . . . . . . . . . . . . . . . . . . . . . . . Swap . | . . . . . . . . . . . . . . . . . . . . . . . . . Drop . | . . . . . . . . . . . . . . . . . . . . . . . . . Fire 38 | . 6 . 7 . . 4 . . . . . . . . . . 8 . . 12 . . . 1 Melee . | . . . . . . . . . . . . . . . . . . . . . . . . . Ram 46 | . . . . . . . . . . . . 3 . . . . . . 1 14 14 . . 14 Kick . | . . . . . . . . . . . . . . . . . . . . . . . . . Crush . | . . . . . . . . . . . . . . . . . . . . . . . . . Escape Stasis 6 | . . . . . . . . . . . . . . . . . . . . . . . 6 . Rewire 2 | . . . . . . . . . . . . . . . . . . . . . 1 . 1 . Trap . | . . . . . . . . . . . . . . . . . . . . . . . . . Miscellaneous . | . . . . . . . . . . . . . . . . . . . . . . . . . Route ------- -11/Scrapyard -10/Materials -10/Mines -9/Materials -9/Mines -8/Materials -8/Storage -8/Garrison -7/Factory -7/Lower Caves -7/Lower Caves -6/Factory (discovered 3 exits: Fac / Low / DSF) -6/DSF -5/Factory -5/Upper Caves -5/Upper Caves -4/Factory -4/Garrison (discovered 2 exits: *Fac x2) -4/Factory -4/DSF -3/Research -3/Garrison -2/Research -2/DSF -1/Access History --------- Turn | Location | Event 3 | -11/Scrapyard | Discovered new exit (range 16) 12 | -11/Scrapyard | Entered Materials 89 | -10/Materials | Discovered new exit (range 10) 92 | -10/Materials | Entered Mines 109 | -10/Mines | Assembled infested the area 119 | -10/Mines | Discovered new exit (range 6) 121 | -10/Mines | Entered Materials 152 | -9/Materials | Discovered new exit (range 10) 156 | -9/Materials | Entered Mines 184 | -9/Mines | Discovered new exit (range 7) 188 | -9/Mines | Learned location of Zion (-7) 189 | -9/Mines | Entered Materials 208 | -8/Materials | Discovered new exit (range 13) 213 | -8/Materials | Entered Storage 331 | -8/Storage | Met a pair of Derelict thieves 372 | -8/Storage | Identified exit to Garrison 373 | -8/Storage | Entered Garrison 373 | -8/Garrison | Accompanied by 1 ally 381 | -8/Garrison | Triggered checkpoint 417 | -8/Garrison | Triggered checkpoint 421 | -8/Garrison | Discovered new exit (range 10) 424 | -8/Garrison | Entered Factory 448 | -7/Factory | Discovered new exit (range 15) 454 | -7/Factory | Entered Lower Caves 510 | -7/Lower Caves | Learned location of 2 exits from Factory 528 | -7/Lower Caves | Encountered a Warlord checkpoint 563 | -7/Lower Caves | Discovered new exit (range 8) 566 | -7/Lower Caves | Entered another Lower Caves area 583 | -7/Lower Caves | Discovered new exit (range 9) 587 | -7/Lower Caves | Entered Factory 588 | -6/Factory | Identified exit to Lower Caves 588 | -6/Factory | Identified exit to Factory 588 | -6/Factory | Identified exit to DSF 593 | -6/Factory | Entered DSF 629 | -6/DSF | Discovered exit to Factory (range 14) 636 | -6/DSF | Additional patrols routed to DSF 640 | -6/DSF | Entered Factory 769 | -5/Factory | Discovered new exit (range 4) 774 | -5/Factory | Entered Upper Caves 1096 | -5/Upper Caves | Spotted B-75 Beast 1167 | -5/Upper Caves | Discovered new exit (range 15) 1186 | -5/Upper Caves | Entered another Upper Caves area 1213 | -5/Upper Caves | Discovered new exit (range 9) 1222 | -5/Upper Caves | Entered Factory 1413 | -4/Factory | Identified exit to Garrison 1413 | -4/Factory | Entered Garrison 1426 | -4/Garrison | Spotted B-86 Titan 1427 | -4/Garrison | Triggered checkpoint 1440 | -4/Garrison | Discovered new exit (range 10) 1443 | -4/Garrison | Attempted to access garrison exit controls, blocked by remote lockdown 1449 | -4/Garrison | Triggered checkpoint 1452 | -4/Garrison | Garrison Relay disabled 1457 | -4/Garrison | Spotted Striker 1457 | -4/Garrison | Spotted Striker 1478 | -4/Garrison | Discovered new exit (range 5) 1479 | -4/Garrison | Entered Factory 1502 | -4/Factory | Lost 3 parts (1p1n1w) 1549 | -4/Factory | Identified exit to DSF 1549 | -4/Factory | Entered DSF 1563 | -4/DSF | Discovered new exit (range 14) 1571 | -4/DSF | Entered Research 1695 | -3/Research | Core integrity fell below 50% 1705 | -3/Research | Lost 6 parts (1p2n2u1w) 1948 | -3/Research | Identified exit to Garrison 1949 | -3/Research | Entered Garrison 2033 | -3/Garrison | Triggered checkpoint 2053 | -3/Garrison | Warlord forces raided the area 2061 | -3/Garrison | Spotted B-86 Titan 2065 | -3/Garrison | Triggered checkpoint 2115 | -3/Garrison | Triggered checkpoint 2142 | -3/Garrison | Core integrity fell below 20% 2163 | -3/Garrison | Discovered new exit (range 10) 2167 | -3/Garrison | Entered Research 2185 | -2/Research | Identified exit to DSF 2185 | -2/Research | Entered DSF 2210 | -2/DSF | Additional patrols routed to DSF 2282 | -2/DSF | Discovered new exit (range 16) 2289 | -2/DSF | Entered Access 2481 | -1/Access | Spotted B-99 Colossus 2509 | -1/Access | Core integrity fell below 50% 2570 | -1/Access | Core integrity fell below 20% 2571 | -1/Access | Lost 3 parts (1p2n) 2576 | -1/Access | Destroyed by S-43 Plague with Heavy Machine Gun Last Messages --------------- 02503_ ALERT: Suspicious activity at Garrison Access A002. Dispatching Investigation squad. 02505_ Slug penetrates Wall. 02509_ Penetrated by Slug. 02517_ Took control of K-01 Serf. 02517_ Extracted analysis data for K-01 Serf. 02527_ Slammed into U-05 Engineer. 02536_ Slug penetrates Wall. 02536_ Wheel destroyed. 02539_ Slug penetrates Wall. 02539_ Wheel destroyed. 02540_ Lgt. Ion Engine destroyed. 02542_ Penetrated by Slug. 02543_ Slug penetrates Wall. 02543_ Penetrated by Slug. 02547_ Slammed into R-10 Processor. 02557_ Slammed into K-01 Serf. 02560_ System corrupted: Heat flow error (+191). 02567_ U-05 Engineer destroyed. 02571_ Critical hit (Burn: +37). Map ----- +----------------------------------------------------+ | ????????###########/## #?????????????????????????? | | ????????# """""" # #?????????????????????????? | | ######### ""S""" # #########+#???????????????? | | + """ # ??????????????? | | ######### !# ?????????????? | | ????????# |%# ?????????????? | | ????????# """"" !+ ?????????????? | | ????????# """"" # ?????????????? | | ????????# """"" # ?????????????? | | ????????# """"" # ?????????????? | | ????????# """"" = # ######??????????????? | | ????????# ? # #???????????????????? | | ????????# # +???????????????????? | | ????????#####+######## g####???????????????????? | | ?????????????????????# #??????????????????????? | | ?????????????????????# #??????????????????????? | | ?????????????????????# #??????????????????????? | | ??????????????????#### #??????????????????????? | | ????????????T #??????????????????????? | | ???????????? ######### #??????????????????????? | | ????????????????????????# #??????????????????????? | | ????????????????????????# #??????????????????????? | | ????????????????????????# #??????????????????????? | | ????????????????????????# #??????????????????????? | | ????????????????????????# #??????????????????????? | | ????????????????????????#k#??????????????????????? | | ????????????????????????# #??????????????????????? | | ????????????????????????# #??????????????????????? | | ????????????????????????#+#??????????????????????? | | ?????????????????????????????????????????????????? | | ?????????????????????????????????????????????????? | | ?????????????????????????????????????????????????? | | ?????????????????????????????????????????????????? | | ?????????????????????????????????????????????????? | | ?????????????????????????????????????????????????? | | ?????????????????????????????????????????????????? | | ?????????????????????????????????????????????????? | | ?????????????????????????????????????????????????? | | ?????????????????????????????????????????????????? | | ?????????????????????????????????????????????????? | | ?????????????????????????????????????????????????? | | ?????????????????????????????????????????????????? | | ?????????????????????????????????????????????????? | | ?????????????????????????????????????????????????? | | ?????????????????????????????????????????????????? | | ?????????????????????????????????????????????????? | | ?????????????????????????????????????????????????? | | ?????????????????????????????????????????????????? | | ?????????????????????????????????????????????????? | | ?????????????????????????????????????????????????? | +----------------------------------------------------+ Best States ------------- Heat Dissipation 48 Energy Generation 26 Energy Capacity 120 Matter Stores 100 Matter Capacity 125 Sight Range 16 Terrain Scan Range 14 Terrain Scan Density 85 Resistance: KI 20 Resistance: TH 20 Resistance: EX 20 Resistance: EM 20 Resistance: I 20 Resistance: S 20 Resistance: P 20 Evasion (%) 63 Offensive Hacking 10 Item Schematics ----------------- None Robot Schematics ------------------ None Fabricated ------------ Nothing Repaired ---------- Nothing Alien Tech Used ----------------- None Achievements -------------- Denied? Desperate Times I Survived The Infestation Streaker Challenges ------------ None Polymind | -11 -10 -10 -9 -9 -8 -8 -8 -7 -7 -7 -6 -6 -5 -5 -5 -4 -4 -4 -4 -3 -3 -2 -2 -1 ---------- Run | Yrd Mat Min Mat Min Mat Sto Gar Fac Low Low Fac DSF Fac Upp Upp Fac Gar Fac DSF Res Gar Res DSF Acc Hosts 7 | . 1 . . . . . . . . . . 1 . . . 1 . . . 2 . . . 2 Combat Hostiles 5 | . 1 . . . . . . . . . . 1 . . . 1 . . . 1 . . . 1 Allies . | . . . . . . . . . . . . . . . . . . . . . . . . . Unique Host Classes 4 | . 1 . . . . . . . . . . 1 . . . . . . . 1 . . . 1 Average Host Suspicion 62 | . 100 21 70 16 25 82 28 18 25 . 3 47 21 73 . 39 78 46 50 99 47 . . 99 Unsuspicious Activity . | . . . . . . . . . . . . . . . . . . . . . . . . . Returns to Shadow . | . . . . . . . . . . . . . . . . . . . . . . . . . Fuzzy Dispatches 3 | . . . . . . . . . . . . . . . . 1 . . . 1 . . . 1 Protomatter Created 272 | . . 7 19 . . 30 . . 24 . . . . . . . 39 . . 35 118 . . . Used 123 | . 6 . . . . . . . . . . 45 . . . 14 . . . 29 . . . 29 Decayed 151 | . . . . . . . . . 24 . . . . . . . 9 . . . 118 . . . Highest Spend 45 | . 6 . . . . . . . . . . 45 . . . 14 . . . 24 . . . 24 Top 5 Hosts by Kills: S-43 Plague (-3/Research: 4) S-27 Virus (-4/Factory: 3) S-10 Pest (-10/Materials: 2) Game ------ Seed FlakNeutrinoMiniperforator Manual? 0 Play Time 00:41:27 Cumulative 13.2 hours Start 2025.10.15 @ 04:12:21 End 2025.10.15 @ 04:49:14 Sessions 1 Manual Loads 0 Difficulty Adventurer Special Mode Winter2022/Polymind Game No. 23 Rogue 8 Adventurer 15 Explorer 0 Win Type - Total 0 Types 0/0/0/0/0/0/0/0/0/0 Lore% 12 Gallery% 25 Achievement% 21 Wizard Run 0 Options --------- Layout 0 ASCII 0 Keyboard 1 Movement Numpad Keybinds 0 Fullscreen 1 Font 18/X11 Map View 76x50 Zoom Use 0% Tactical HUD 1 Map Filters NONE Filters NONE Steam 1 RUN: 14f339c2-0a04-41bf-bafa-2dabb9978570